fUST/lending_fUST_20250628
["ID","MTS","AMOUNT","RATE_DAILY","PERIOD"]
[368252123,1751073305268,-460.0,0.00019178,2]
[368252124,1751073305293,-2379.59,0.00019178,2]
[368252125,1751073305316,-460.0,0.00019178,2]
[368252126,1751073305339,-460.0,0.00019178,2]
[368252127,1751073305363,-460.0,0.00019178,2]
[368252128,1751073305387,-460.0,0.00019178,2]
[368252129,1751073305412,-460.0,0.00019178,2]
[368252130,1751073305436,-460.0,0.00019178,2]
[368252131,1751073305460,-460.0,0.00019178,2]
[368252132,1751073305485,-460.64,0.00019178,2]
[368252133,1751073305510,-903.33,0.00019178,2]
[368252134,1751073305534,-460.0,0.00019178,2]
[368252135,1751073305559,-607.65,0.00019178,2]
[368252136,1751073305585,-803.67,0.00019178,2]
[368252137,1751073305609,-460.0,0.00019178,2]
[368252138,1751073305634,-460.0,0.00019178,2]
[368252139,1751073305659,-460.0,0.00019178,2]
[368252140,1751073305683,-460.0,0.00019178,2]
[368252141,1751073305707,-522.33,0.00019178,2]
[368252142,1751073305734,-691.11,0.00019178,2]
[368252143,1751073305758,-460.0,0.00019178,2]
[368252144,1751073305781,-460.0,0.00019178,2]
[368252145,1751073305806,-596.13,0.00019178,2]
[368252146,1751073305831,-460.0,0.00019178,2]
[368252147,1751073305856,-816.73,0.00019178,2]
[368252148,1751073305879,-460.0,0.00019178,2]
[368252149,1751073305904,-460.0,0.00019178,2]
[368252150,1751073305932,-460.0,0.00019178,2]
[368252151,1751073305957,-460.0,0.00019178,2]
[368252152,1751073305988,-894.51,0.00019178,2]
[368252153,1751073306014,-460.0,0.00019178,2]
[368252154,1751073306039,-703.54,0.00019178,2]
[368252155,1751073306062,-318.66381283,0.00019178,2]
[368252156,1751073306085,-460.0,0.00019178,2]
[368252157,1751073306110,-460.0,0.00019178,2]
[368252158,1751073306135,-505.12,0.00019178,2]
[368252159,1751073306159,-460.0,0.00019178,2]
[368252160,1751073306184,-460.0,0.00019178,2]
[368252161,1751073306208,-184.34674105,0.00019178,2]
[368252162,1751073306234,-460.0,0.00019178,2]
[368252163,1751073306388,-460.0,0.00019178,2]
[368252164,1751073306412,-266.59089114,0.00019178,2]
[368252165,1751073306436,-460.0,0.00019178,2]
[368252166,1751073306459,-460.0,0.00019178,2]
[368252167,1751073306483,-460.0,0.00019178,2]
[368252168,1751073306507,-460.0,0.00019178,2]
[368252169,1751073306532,-460.0,0.00019178,2]
[368252170,1751073306555,-460.0,0.00019178,2]
[368252171,1751073306578,-460.0,0.00019178,2]
[368252172,1751073306601,-460.0,0.00019178,2]
[368252173,1751073306625,-460.0,0.00019178,2]
[368252174,1751073306650,-460.0,0.00019178,2]
[368252175,1751073306675,-460.0,0.00019178,2]
[368252176,1751073306701,-876.29,0.00019178,2]
[368252177,1751073306724,-460.0,0.00019178,2]
[368252178,1751073306748,-508.10949737,0.00019178,2]
[368252179,1751073306786,-460.0,0.00019178,2]
[368252180,1751073306815,-460.0,0.00019178,2]
[368252181,1751073306843,-460.0,0.00019178,2]
[368252182,1751073306870,-752.62,0.00019178,2]
[368252183,1751073306896,-430.0,0.00019178,2]
[368252184,1751073306923,-460.0,0.00019178,2]
[368252185,1751073306953,-460.0,0.00019178,2]
[368252186,1751073306980,-460.0,0.00019178,2]
[368252187,1751073307007,-460.0,0.00019178,2]
[368252188,1751073307032,-460.0,0.00019178,2]
[368252189,1751073307058,-460.0,0.00019178,2]
[368252190,1751073307083,-460.0,0.00019178,2]
[368252191,1751073307107,-460.0,0.00019178,2]
[368252192,1751073307133,-532.82,0.00019178,2]
[368252193,1751073307157,-460.0,0.00019178,2]
[368252194,1751073307183,-460.0,0.00019178,2]
[368252195,1751073307208,-460.0,0.00019178,2]
[368252196,1751073307233,-460.0,0.00019178,2]
[368252197,1751073307258,-460.0,0.00019452,2]
[368252198,1751073307282,-460.0,0.00019452,2]
[368252199,1751073307308,-460.0,0.00019452,2]
[368252200,1751073307333,-460.0,0.00019452,2]
[368252201,1751073307359,-989.4,0.00019452,2]
[368252202,1751073307383,-460.0,0.00019452,2]
[368252203,1751073307406,-460.0,0.00019452,2]
[368252204,1751073307431,-460.0,0.00019452,2]
[368252205,1751073307456,-460.0,0.00019452,2]
[368252206,1751073307481,-460.0,0.00019452,2]
[368252207,1751073307505,-495.86,0.00019452,2]
[368252208,1751073307529,-460.0,0.00019452,2]
[368252209,1751073307554,-231.27,0.00019452,2]
[368252210,1751073307580,-1261.85,0.00019452,2]
[368252211,1751073307605,-460.0,0.00019452,2]
[368252212,1751073307631,-185.91726529,0.00019452,2]
[368252213,1751073307655,-1489.58,0.00019452,2]
[368252214,1751073307680,-2868.03,0.00019452,2]
[368252215,1751073307706,-460.0,0.00019452,2]
[368252216,1751073307733,-1631.49,0.00019452,2]
[368252217,1751073307758,-460.0,0.00019452,2]
[368252218,1751073307783,-460.0,0.00019452,2]
[368252219,1751073307809,-460.0,0.00019452,2]
[368252220,1751073307836,-2379.59,0.00019452,2]
[368252221,1751073307862,-460.0,0.00019452,2]
[368252222,1751073307886,-460.0,0.00019452,2]
[368252223,1751073307911,-460.0,0.00019452,2]
[368252224,1751073307938,-460.0,0.00019452,2]
[368252225,1751073307966,-460.0,0.00019452,2]
[368252226,1751073307996,-460.0,0.00019452,2]
[368252227,1751073308021,-460.64,0.00019452,2]
[368252228,1751073308046,-903.33,0.00019452,2]
[368252229,1751073308071,-607.65,0.00019452,2]
[368252230,1751073308095,-803.67,0.00019452,2]
[368252231,1751073308118,-460.0,0.00019452,2]
[368252232,1751073308142,-460.0,0.00019452,2]
[368252233,1751073308166,-522.33,0.00019452,2]
[368252234,1751073308191,-691.11,0.00019452,2]
[368252235,1751073308214,-460.0,0.00019452,2]
[368252236,1751073308238,-460.0,0.00019452,2]
[368252237,1751073308262,-460.0,0.00019452,2]
[368252238,1751073308286,-816.73,0.00019452,2]
[368252239,1751073308309,-460.0,0.00019452,2]
[368252240,1751073308333,-460.0,0.00019452,2]
[368252241,1751073308356,-403.10133934,0.00019452,2]
[368252242,1751073308379,-460.0,0.00019452,2]
[368252243,1751073308404,-894.51,0.00019452,2]
[368252244,1751073308427,-460.0,0.00019452,2]
[368252245,1751073308451,-703.54,0.00019452,2]
[368252246,1751073308474,-460.0,0.00019452,2]
[368252247,1751073308498,-460.0,0.00019452,2]
[368252248,1751073308522,-505.12,0.00019452,2]
[368252249,1751073308547,-460.0,0.00019452,2]
[368252250,1751073308571,-460.0,0.00019452,2]
[368252251,1751073308595,-460.0,0.00019452,2]
[368252252,1751073308620,-460.0,0.00019452,2]
[368252253,1751073308643,-460.0,0.00019452,2]
[368252254,1751073308667,-460.0,0.00019452,2]
[368252255,1751073308690,-460.0,0.00019452,2]
[368252256,1751073308713,-460.0,0.00019452,2]
[368252257,1751073308737,-460.0,0.00019452,2]
[368252258,1751073308760,-460.0,0.00019452,2]
[368252259,1751073308784,-460.0,0.00019452,2]
[368252260,1751073308808,-460.0,0.00019452,2]
[368252261,1751073308832,-460.0,0.00019452,2]
[368252262,1751073308858,-876.29,0.00019452,2]
[368252263,1751073308882,-460.0,0.00019452,2]
[368252264,1751073308905,-471.17526488,0.00019452,2]
[368252265,1751073308934,-460.0,0.00019452,2]
[368252266,1751073309100,-460.0,0.00019452,2]
[368252267,1751073309124,-752.62,0.00019452,2]
[368252268,1751073309148,-460.0,0.00019452,2]
[368252269,1751073309171,-460.0,0.00019452,2]
[368252270,1751073309194,-460.0,0.00019452,2]
[368252271,1751073309217,-460.0,0.00019452,2]
[368252272,1751073309240,-460.0,0.00019452,2]
[368252273,1751073309264,-532.82,0.00019452,2]
[368252274,1751073309286,-460.0,0.00019452,2]
[368252275,1751073309310,-460.0,0.00019452,2]
[368252276,1751073309334,-460.0,0.00019452,2]
[368252277,1751073309356,-460.0,0.00019452,2]
[368252278,1751073309379,-460.0,0.00019726,2]
[368252279,1751073309402,-460.0,0.00019726,2]
[368252280,1751073309426,-460.0,0.00019726,2]
[368252281,1751073309450,-989.4,0.00019726,2]
[368252282,1751073309474,-460.0,0.00019726,2]
[368252283,1751073309497,-460.0,0.00019726,2]
[368252284,1751073309520,-511.75,0.00019726,2]
[368252285,1751073309544,-460.0,0.00019726,2]
[368252286,1751073309567,-460.0,0.00019726,2]
[368252287,1751073309591,-1261.85,0.00019726,2]
[368252288,1751073309615,-460.0,0.00019726,2]
[368252289,1751073309637,-1489.58,0.00019726,2]
[368252290,1751073309660,-2868.03,0.00019726,2]
[368252291,1751073309684,-460.0,0.00019726,2]
[368252292,1751073309708,-1631.49,0.00019726,2]
[368252293,1751073309733,-460.0,0.00019726,2]
[368252294,1751073309756,-460.0,0.00019726,2]
[368252295,1751073309780,-460.0,0.00019726,2]
[368252296,1751073309806,-2379.59,0.00019726,2]
[368252297,1751073309830,-460.0,0.00019726,2]
[368252298,1751073309853,-460.0,0.00019726,2]
[368252299,1751073309876,-460.0,0.00019726,2]
[368252300,1751073309900,-460.0,0.00019726,2]
[368252301,1751073309924,-460.0,0.00019726,2]
[368252302,1751073309953,-460.64,0.00019726,2]
[368252303,1751073309980,-903.33,0.00019726,2]
[368252304,1751073310015,-607.65,0.00019726,2]
[368252305,1751073310040,-803.67,0.00019726,2]
[368252306,1751073310064,-460.0,0.00019726,2]
[368252307,1751073310088,-522.33,0.00019726,2]
[368252308,1751073310112,-691.11,0.00019726,2]
[368252309,1751073310136,-460.0,0.00019726,2]
[368252310,1751073310158,-460.0,0.00019726,2]
[368252311,1751073310182,-460.0,0.00019726,2]
[368252312,1751073310206,-816.73,0.00019726,2]
[368252313,1751073310228,-460.0,0.00019726,2]
[368252314,1751073310253,-460.0,0.00019726,2]
[368252315,1751073310277,-894.51,0.00019726,2]
[368252316,1751073310302,-703.54,0.00019726,2]
[368252317,1751073310324,-460.0,0.00019726,2]
[368252318,1751073310347,-460.0,0.00019726,2]
[368252319,1751073310370,-505.12,0.00019726,2]
[368252320,1751073310394,-460.0,0.00019726,2]
[368252321,1751073310417,-460.0,0.00019726,2]
[368252322,1751073310440,-460.0,0.00019726,2]
[368252323,1751073310464,-460.0,0.00019726,2]
[368252324,1751073310488,-460.0,0.00019726,2]
[368252325,1751073310512,-460.0,0.00019726,2]
[368252326,1751073310535,-460.0,0.00019726,2]
[368252327,1751073310560,-460.0,0.00019726,2]
[368252328,1751073310585,-876.29,0.00019726,2]
[368252329,1751073310608,-460.0,0.00019726,2]
[368252330,1751073310632,-460.0,0.00019726,2]
[368252331,1751073310657,-460.0,0.00019726,2]
[368252332,1751073310681,-752.62,0.00019726,2]
[368252333,1751073310706,-460.0,0.00019726,2]
[368252334,1751073310740,-460.0,0.00019726,2]
[368252335,1751073310764,-460.0,0.00019726,2]
[368252336,1751073310788,-460.0,0.00019726,2]
[368252337,1751073310813,-532.82,0.00019726,2]
[368252338,1751073310836,-460.0,0.00019726,2]
[368252339,1751073310860,-460.0,0.00019726,2]
[368252340,1751073310885,-460.0,0.00019726,2]
[368252341,1751073310908,-500.0,0.00019812,2]
[368252342,1751073310933,-340.692832,0.00019879,2]
[368252343,1751073310956,-460.0,0.0002,2]
[368252344,1751073310980,-460.0,0.0002,2]
[368252345,1751073311006,-989.4,0.0002,2]
[368252346,1751073311032,-460.0,0.0002,2]
[368252347,1751073311056,-460.0,0.0002,2]
[368252348,1751073311079,-460.0,0.0002,2]
[368252349,1751073311102,-460.0,0.0002,2]
[368252350,1751073311126,-1261.85,0.0002,2]
[368252351,1751073311149,-460.0,0.0002,2]
[368252352,1751073311173,-1489.58,0.0002,2]
[368252353,1751073311196,-2868.03,0.0002,2]
[368252354,1751073311220,-460.0,0.0002,2]
[368252355,1751073311244,-1631.49,0.0002,2]
[368252356,1751073311268,-460.0,0.0002,2]
[368252357,1751073311291,-460.0,0.0002,2]
[368252358,1751073311314,-460.0,0.0002,2]
[368252359,1751073311339,-2379.59,0.0002,2]
[368252360,1751073311362,-460.0,0.0002,2]
[368252361,1751073311385,-460.0,0.0002,2]
[368252362,1751073311409,-460.0,0.0002,2]
[368252363,1751073311432,-167.89,0.0002,2]
[368252364,1751073311456,-460.64,0.0002,2]
[368252365,1751073311481,-903.33,0.0002,2]
[368252366,1751073311504,-607.65,0.0002,2]
[368252367,1751073311528,-803.67,0.0002,2]
[368252368,1751073311553,-460.0,0.0002,2]
[368252369,1751073311576,-522.33,0.0002,2]
[368252370,1751073311725,-691.11,0.0002,2]
[368252371,1751073311749,-460.0,0.0002,2]
[368252372,1751073311774,-816.73,0.0002,2]
[368252373,1751073311798,-460.0,0.0002,2]
[368252374,1751073311823,-894.51,0.0002,2]
[368252375,1751073311848,-703.54,0.0002,2]
[368252376,1751073311874,-460.0,0.0002,2]
[368252377,1751073311897,-505.12,0.0002,2]
[368252378,1751073311923,-460.0,0.0002,2]
[368252379,1751073311951,-460.0,0.0002,2]
[368252380,1751073311976,-460.0,0.0002,2]
[368252381,1751073312002,-460.0,0.0002,2]
[368252382,1751073312026,-460.0,0.0002,2]
[368252383,1751073312049,-460.0,0.0002,2]
[368252384,1751073312074,-460.0,0.0002,2]
[368252385,1751073312099,-876.29,0.0002,2]
[368252386,1751073312122,-460.0,0.0002,2]
[368252387,1751073312146,-460.0,0.0002,2]
[368252388,1751073312171,-460.0,0.0002,2]
[368252389,1751073312196,-752.62,0.0002,2]
[368252390,1751073312220,-460.0,0.0002,2]
[368252391,1751073312244,-460.0,0.0002,2]
[368252392,1751073312267,-460.0,0.0002,2]
[368252393,1751073312290,-460.0,0.0002,2]
[368252394,1751073312314,-532.82,0.0002,2]
[368252395,1751073312337,-460.0,0.0002,2]
[368252396,1751073312362,-460.0,0.0002,2]
[368252397,1751073312387,-460.0,0.0002,2]
[368252398,1751073312409,-160.0,0.00020265,2]
[368252399,1751073312432,-214.91804724,0.00020265,2]
[368252400,1751073312455,-160.0,0.00020265,2]
[368252401,1751073312476,-160.0,0.00020265,2]
[368252402,1751073312500,-160.0,0.00020265,2]
[368252403,1751073312521,-160.0,0.00020265,2]
[368252404,1751073312544,-160.0,0.00020265,2]
[368252405,1751073312568,-160.0,0.00020265,2]
[368252406,1751073312590,-836.98798914,0.00020265,2]
[368252407,1751073312612,-230.26210603,0.00020265,2]
[368252408,1751073312634,-213.75309343,0.00020265,2]
[368252409,1751073312656,-12562.41216491,0.00020265,2]
[368252410,1751073312678,-160.0,0.00020265,2]
[368252411,1751073312702,-460.0,0.00020273,2]
[368252412,1751073312727,-989.4,0.00020273,2]
[368252413,1751073312752,-460.0,0.00020273,2]
[368252414,1751073312777,-460.0,0.00020273,2]
[368252415,1751073312801,-227.6216926,0.00020273,2]
[368252416,1751073312825,-31.94726275,0.00020273,2]
[368252417,1751073701588,500.0,0.00017996,2]
[368252418,1751073706691,403.61749909,0.000173,2]
[368252420,1751073886924,360.318937,0.00013699,2]
[368252421,1751073943127,-765.8704439,0.00018151,2]
[368252422,1751073943150,-300.0,0.00018588,2]
[368252423,1751073943371,-300.0,0.00018588,2]
[368252424,1751073943395,-994.05260971,0.00018589,2]
[368252425,1751073944769,500.0,2.238e-05,2]
[368252426,1751073947089,-8000.0,0.00018589,2]
[368252431,1751074044482,500.000001,2.78e-05,2]
[368252432,1751074045095,-300.0,0.00018588,2]
[368252433,1751074045117,-48.72225636,0.00018589,2]
[368252434,1751074048241,-1365.64614691,0.00018589,2]
[368252435,1751074048271,-801.47744695,0.00018589,2]
[368252436,1751074149106,-300.0,0.00018588,2]
[368252437,1751074149128,-12224.91733674,0.00018589,2]
[368252438,1751074154095,-695.8,0.00018589,2]
[368252439,1751074163116,-769.38420333,0.00018589,2]
[368252440,1751074163136,-280.71278523,0.000189,2]
[368252441,1751074163157,-500.0,0.00018943,2]
[368252442,1751074163176,-418.75221606,0.00019078,2]
[368252443,1751074163197,-284.81,0.00019168,3]
[368252444,1751074163217,-854.43,0.00019168,3]
[368252445,1751074163238,-500.0,0.00019171,2]
[368252446,1751074163259,-500.0,0.00019171,2]
[368252447,1751074163291,-500.0,0.00019171,2]
[368252448,1751074163316,-500.0,0.00019171,2]
[368252449,1751074163337,-500.0,0.00019171,2]
[368252450,1751074163359,-651.45491145,0.00019171,2]
[368252451,1751074163384,-500.0,0.00019171,2]
[368252452,1751074163406,-500.0,0.00019171,2]
[368252453,1751074163427,-344.94105155,0.00019171,2]
[368252454,1751074163449,-500.0,0.00019171,2]
[368252455,1751074163472,-339.26094098,0.00019171,2]
[368252456,1751074163494,-500.0,0.00019171,2]
[368252457,1751074163518,-500.0,0.00019171,2]
[368252458,1751074163540,-500.0,0.00019171,2]
[368252459,1751074163564,-500.0,0.00019171,2]
[368252460,1751074163584,-500.0,0.00019171,2]
[368252461,1751074163607,-342.21580238,0.00019171,2]
[368252462,1751074163631,-500.0,0.00019171,2]
[368252463,1751074163658,-500.0,0.00019171,2]
[368252464,1751074163683,-500.0,0.00019171,2]
[368252465,1751074163712,-500.0,0.00019171,2]
[368252466,1751074163971,-500.0,0.00019171,2]
[368252467,1751074163996,-500.0,0.00019171,2]
[368252468,1751074164023,-500.0,0.00019171,2]
[368252469,1751074164047,-500.0,0.00019171,2]
[368252470,1751074164072,-500.0,0.00019171,2]
[368252471,1751074164095,-272.09113734,0.00019171,2]
[368252472,1751074164116,-500.0,0.00019171,2]
[368252473,1751074164139,-500.0,0.00019171,2]
[368252474,1751074164163,-500.0,0.00019171,2]
[368252475,1751074164187,-500.0,0.00019171,2]
[368252476,1751074164211,-500.0,0.00019171,2]
[368252477,1751074164235,-423.42454144,0.00019171,2]
[368252478,1751074164261,-500.0,0.00019171,2]
[368252479,1751074164287,-500.0,0.00019171,2]
[368252480,1751074164312,-500.0,0.00019171,2]
[368252481,1751074164333,-500.0,0.00019171,2]
[368252482,1751074164359,-500.0,0.00019171,2]
[368252483,1751074164384,-500.0,0.00019171,2]
[368252484,1751074164408,-500.0,0.00019171,2]
[368252485,1751074164432,-500.0,0.00019171,2]
[368252486,1751074164456,-500.0,0.00019171,2]
[368252487,1751074164475,-500.49556479,0.00019171,2]
[368252488,1751074164499,-9600.87139638,0.00019172,2]
[368252489,1751074164519,-225.48016869,0.00019173,2]
[368252490,1751074164539,-288.09348078,0.00019173,2]
[368252491,1751074164560,-500.0,0.00019173,2]
[368252492,1751074164581,-460.0,0.00019178,2]
[368252493,1751074164601,-460.0,0.00019178,2]
[368252494,1751074164622,-460.0,0.00019178,2]
[368252495,1751074164654,-460.0,0.00019178,2]
[368252496,1751074164676,-460.0,0.00019178,2]
[368252497,1751074164696,-460.0,0.00019178,2]
[368252498,1751074164717,-460.0,0.00019178,2]
[368252499,1751074164737,-419.64771371,0.00019178,2]
[368252500,1751074164756,-460.0,0.00019178,2]
[368252501,1751074164777,-460.0,0.00019178,2]
[368252502,1751074164798,-460.0,0.00019178,2]
[368252503,1751074164821,-460.0,0.00019178,2]
[368252504,1751074164842,-460.0,0.00019178,2]
[368252505,1751074164862,-225.19243511,0.00019178,2]
[368252506,1751074164882,-460.0,0.00019178,2]
[368252507,1751074164903,-460.0,0.00019178,2]
[368252508,1751074164923,-460.0,0.00019178,2]
[368252509,1751074164942,-460.0,0.00019178,2]
[368252510,1751074164962,-460.0,0.00019178,2]
[368252511,1751074164983,-460.0,0.00019178,2]
[368252512,1751074165003,-460.0,0.00019178,2]
[368252513,1751074165025,-460.0,0.00019178,2]
[368252514,1751074165045,-460.0,0.00019178,2]
[368252515,1751074165066,-460.0,0.00019178,2]
[368252516,1751074165086,-460.66895897,0.00019178,2]
[368252517,1751074165107,-205.70532358,0.00019178,2]
[368252518,1751074165127,-460.0,0.00019178,2]
[368252519,1751074165148,-460.0,0.00019178,2]
[368252520,1751074165168,-460.0,0.00019178,2]
[368252521,1751074165188,-460.0,0.00019178,2]
[368252522,1751074165208,-460.0,0.00019178,2]
[368252523,1751074165229,-460.0,0.00019178,2]
[368252524,1751074165250,-460.0,0.00019178,2]
[368252525,1751074165270,-460.0,0.00019178,2]
[368252526,1751074165292,-460.0,0.00019178,2]
[368252527,1751074165312,-460.0,0.00019178,2]
[368252528,1751074165332,-460.0,0.00019178,2]
[368252529,1751074165352,-460.0,0.00019178,2]
[368252530,1751074165373,-460.0,0.00019178,2]
[368252531,1751074165392,-460.0,0.00019178,2]
[368252532,1751074165412,-460.0,0.00019178,2]
[368252533,1751074165432,-460.0,0.00019178,2]
[368252534,1751074165453,-500.0,0.00019178,2]
[368252535,1751074165473,-338.16859408,0.00019178,2]
[368252536,1751074165495,-460.0,0.00019178,2]
[368252537,1751074165518,-460.0,0.00019178,2]
[368252538,1751074165539,-460.0,0.00019178,2]
[368252539,1751074165559,-460.0,0.00019178,2]
[368252540,1751074165579,-519.17918073,0.00019178,2]
[368252541,1751074165601,-460.0,0.00019178,2]
[368252542,1751074165622,-460.0,0.00019178,2]
[368252543,1751074165645,-460.0,0.00019178,2]
[368252544,1751074165665,-460.0,0.00019178,2]
[368252545,1751074165687,-460.0,0.00019178,2]
[368252546,1751074165708,-460.0,0.00019178,2]
[368252547,1751074165730,-460.0,0.00019178,2]
[368252548,1751074165749,-460.0,0.00019178,2]
[368252549,1751074165768,-460.0,0.00019178,2]
[368252550,1751074165789,-460.0,0.00019178,2]
[368252551,1751074165809,-325.82091237,0.00019178,2]
[368252552,1751074165829,-460.0,0.00019178,2]
[368252553,1751074165849,-259.0679177,0.00019178,2]
[368252597,1751074236082,-154.60154087,0.00018981,2]
[368252598,1751074236091,-468.54569632,0.00019078,2]
[368252599,1751074236100,-501.89196357,0.00019173,2]
[368252600,1751074236110,-1078.49786893,0.00019177,2]
[368252601,1751074236119,-300.0,0.00019177,2]
[368252602,1751074236129,-362.01814259,0.00019177,2]
[368252603,1751074236138,-419.40027189,0.00019177,2]
[368252604,1751074236147,-500.0,0.00019177,2]
[368252605,1751074236157,-500.0,0.00019177,2]
[368252606,1751074236166,-164.96487215,0.00019177,2]
[368252607,1751074236176,-175.06267168,0.00019178,2]
[368252610,1751074238725,-25.86941062,0.00019178,2]
[368252611,1751074238734,-460.0,0.00019178,2]
[368252612,1751074238743,-543.07883616,0.00019178,2]
[368252613,1751074238753,-607.19603303,0.00019178,2]
[368252614,1751074238762,-460.0,0.00019178,2]
[368252615,1751074238771,-460.08508625,0.00019178,2]
[368252616,1751074238780,-460.0,0.00019178,2]
[368252617,1751074238790,-460.0,0.00019178,2]
[368252618,1751074238799,-442.13014405,0.00019178,2]
[368252619,1751074238808,-278.44557306,0.00019178,2]
[368252620,1751074238817,-460.0,0.00019178,2]
[368252621,1751074238826,-460.0,0.00019178,2]
[368252622,1751074238835,-289.02938303,0.00019178,2]
[368252623,1751074238844,-443.1550167,0.00019178,2]
[368252624,1751074238854,-460.0,0.00019178,2]
[368252625,1751074238864,-368.91561023,0.00019178,2]
[368252626,1751074238873,-460.0,0.00019178,2]
[368252627,1751074238882,-460.0,0.00019178,2]
[368252628,1751074238891,-229.87566229,0.00019178,2]
[368252629,1751074238900,-460.0,0.00019178,2]
[368252630,1751074238909,-460.0,0.00019178,2]
[368252631,1751074238918,-460.0,0.00019178,2]
[368252632,1751074238927,-460.0,0.00019178,2]
[368252633,1751074238936,-460.0,0.00019178,2]
[368252634,1751074238945,-460.0,0.00019178,2]
[368252635,1751074238954,-460.0,0.00019178,2]
[368252636,1751074238963,-460.0,0.00019178,2]
[368252637,1751074238972,-460.0,0.00019178,2]
[368252638,1751074238981,-460.0,0.00019178,2]
[368252639,1751074238990,-376.4716147,0.00019178,2]
[368252640,1751074239000,-460.0,0.00019178,2]
[368252641,1751074239009,-460.0,0.00019178,2]
[368252642,1751074239019,-460.0,0.00019178,2]
[368252643,1751074239027,-460.0,0.00019178,2]
[368252644,1751074239037,-460.0,0.00019178,2]
[368252645,1751074239046,-460.0,0.00019178,2]
[368252646,1751074239055,-460.0,0.00019178,2]
[368252647,1751074239064,-460.0,0.00019178,2]
[368252648,1751074239073,-460.0,0.00019178,2]
[368252649,1751074239083,-460.0,0.00019178,2]
[368252650,1751074239093,-470.70700641,0.00019178,2]
[368252651,1751074239102,-460.0,0.00019178,2]
[368252652,1751074239111,-537.50040917,0.00019178,2]
[368252653,1751074239120,-460.0,0.00019178,2]
[368252654,1751074239130,-460.0,0.00019178,2]
[368252655,1751074239139,-460.0,0.00019178,2]
[368252656,1751074239149,-460.0,0.00019178,2]
[368252657,1751074239158,-460.0,0.00019178,2]
[368252658,1751074239167,-460.0,0.00019178,2]
[368252659,1751074239177,-439.04661839,0.00019178,2]
[368252660,1751074239185,-460.0,0.00019178,2]
[368252661,1751074239195,-460.0,0.00019178,2]
[368252662,1751074239204,-295.99655748,0.00019178,2]
[368252663,1751074239213,-568.24436675,0.00019178,2]
[368252664,1751074239222,-460.0,0.00019178,2]
[368252665,1751074239231,-460.0,0.00019178,2]
[368252666,1751074239241,-460.0,0.00019178,2]
[368252667,1751074239251,-460.0,0.00019178,2]
[368252668,1751074239260,-460.0,0.00019178,2]
[368252669,1751074239269,-460.0,0.00019178,2]
[368252670,1751074239278,-461.27565824,0.00019178,2]
[368252671,1751074239287,-460.0,0.00019178,2]
[368252672,1751074239296,-460.0,0.00019178,2]